bitfinex/quotes_ETHUSD_20250725
["timestamp","ask_amount","ask_price","bid_price","bid_amount"]
[1753419771368,3.20825226,3648.9,3648.2,0.4338]
[1753419771877,0.4677,3648.8,3648.2,0.4338]
[1753419772081,0.4677,3648.8,3648.1,4.416]
[1753419772379,0.4677,3648.8,3648.2,2.74106142]
[1753419772753,3.20834888,3648.8,3648.1,7.15715009]
[1753419772958,0.4677,3648.8,3648.2,2.74107472]
[1753419773158,0.4677,3648.8,3648.1,4.416]
[1753419773159,0.4677,3648.8,3648.3,2.74096587]
[1753419773453,2.74085484,3648.5,3648.1,4.415]
[1753419773658,0.4677,3648.4,3648.1,4.415]
[1753419774048,0.4677,3648.3,3648.1,4.415]
[1753419774650,0.4677,3648.3,3647.7,2.74142913]
[1753419774890,2.7412427,3648.0,3647.6,4.414]
[1753419775180,2.74114739,3648.2,3647.6,4.414]
[1753419775181,0.4677,3647.9,3647.6,4.414]
[1753419775478,0.4677,3648.6,3647.8,2.7413069]
[1753419775687,0.4677,3648.6,3647.7,0.4338]
[1753419775688,0.4677,3648.6,3647.9,4.414]
[1753419775872,2.87774166,3648.4,3647.9,4.5508]
[1753419776061,0.1368,3648.4,3648.0,0.4338]
[1753419776261,0.1368,3648.4,3648.1,0.4338]
[1753419776471,0.6045,3648.4,3648.2,4.414]
[1753419776672,0.4677,3648.3,3648.2,4.414]
[1753419777098,0.1368,3648.4,3648.2,4.414]
[1753419777262,0.1368,3648.5,3648.2,4.414]
[1753419777464,1.2829,3648.8,3647.5,0.4338]
[1753419777465,0.4677,3648.4,3647.5,0.4338]
[1753419777792,2.8778787,3648.2,3647.7,0.1368]
[1753419777993,0.4677,3648.1,3647.8,4.414]
[1753419778180,2.74132085,3647.9,3647.5,0.4338]
[1753419778391,0.4677,3647.8,3647.5,0.1368]
[1753419778600,0.4677,3647.8,3647.6,4.414]
[1753419778909,0.4677,3647.7,3647.6,4.414]
[1753419780287,2.74152867,3647.6,3647.4,0.001]
[1753419780511,2.74152867,3647.6,3647.5,4.414]
[1753419780512,2.87832867,3647.6,3647.5,4.414]
[1753419780705,0.1368,3647.6,3647.5,4.414]
[1753419780934,0.1368,3648.5,3648.0,2.74117287]
[1753419781100,0.1368,3648.5,3648.1,4.413]
[1753419781298,0.4677,3648.4,3648.1,4.413]
[1753419781532,0.4677,3648.4,3647.6,1.396]
[1753419781533,0.1368,3648.2,3647.6,0.1368]
[1753419781698,0.1368,3647.8,3647.7,4.414]
[1753419782045,0.4677,3647.8,3647.7,4.414]
[1753419782345,0.4677,3648.4,3647.7,7.58923303]
[1753419782495,0.1368,3648.1,3647.7,4.8478]
[1753419782694,0.1368,3648.1,3647.7,4.414]
[1753419783046,0.4677,3648.0,3647.7,4.8478]
[1753419783521,0.4677,3648.5,3647.8,3.66280581]
[1753419783726,0.1368,3648.2,3647.8,3.66280581]
[1753419783929,0.7947,3648.6,3647.9,0.4338]
[1753419784090,0.1368,3648.5,3648.0,7.29097854]
[1753419784517,0.6045,3648.5,3648.1,0.4338]
[1753419784717,0.6045,3648.5,3648.2,2.74101462]
[1753419784931,0.6045,3648.5,3648.3,4.413]
[1753419785503,0.1368,3648.5,3648.4,0.4338]
[1753419785698,0.4677,3648.9,3648.5,2.74084519]
[1753419785925,0.4677,3648.9,3648.6,4.413]
[1753419785926,0.1368,3648.7,3648.6,4.413]
[1753419786112,0.4677,3649.1,3648.6,7.58756783]
[1753419786412,0.12227314,3649.0,3648.7,3.17446673]
[1753419786736,0.1368,3649.4,3648.8,1.0583]
[1753419786897,0.7939,3649.5,3648.8,1.0583]
[1753419786898,0.002,3649.5,3649.1,2.74035128]
[1753419787103,0.002,3649.5,3649.3,2.74025155]
[1753419787302,0.002,3649.5,3649.4,2.74017646]
[1753419787622,0.4697,3649.5,3649.2,4.413]
[1753419787843,0.002,3649.5,3649.2,4.8468]
[1753419788044,0.002,3649.5,3649.4,2.87697646]
[1753419788543,0.002,3649.5,3649.4,3.79847646]
[1753419788845,0.002,3649.5,3649.4,4.58727646]
[1753419789146,0.002,3649.5,3649.4,7.58727646]
[1753419790831,0.002,3649.5,3649.4,11.99827646]
[1753419791144,0.002,3649.5,3649.4,14.47570523]
[1753419791305,0.002,3649.8,3649.4,14.47570523]
[1753419791306,0.002,3649.8,3649.7,5.73995122]
[1753419791513,0.002,3649.8,3649.7,10.15095122]
[1753419791845,0.002,3649.8,3649.7,11.20925122]
[1753419792049,0.002,3649.8,3649.7,20.74658756]
[1753419792350,0.002,3649.8,3649.7,24.23707932]
[1753419793706,0.002,3650.5,3650.4,5.73942581]
[1753419793945,0.002,3650.5,3650.4,10.14942581]
[1753419794248,0.002,3650.5,3650.4,11.88602581]
[1753419794616,0.002,3650.5,3650.4,8.6589]
[1753419794955,0.4697,3650.5,3650.0,8.3502]
[1753419795136,0.4697,3650.5,3650.1,4.41]
[1753419795443,0.002,3650.5,3650.2,2.73957328]
[1753419795656,0.002,3650.5,3650.1,4.41]
[1753419795808,0.002,3650.5,3650.4,2.73942581]
[1753419796009,0.002,3650.5,3650.4,21.50154327]
[1753419796219,0.002,3650.5,3650.4,8.93681268]
[1753419796432,0.4697,3650.5,3650.0,7.5618]
[1753419796636,0.4697,3650.5,3650.3,2.73945827]
[1753419796836,0.5005,3650.5,3650.4,4.409]
[1753419797567,0.002,3650.7,3650.6,2.73927573]
[1753419797838,0.002,3650.7,3650.6,7.14827573]
[1753419798155,0.002,3650.7,3650.6,8.09637573]
[1753419799050,0.002,3650.7,3650.6,9.17995559]
[1753419799352,0.002,3650.7,3650.6,12.99105559]
[1753419801591,0.002,3650.7,3650.6,8.90547573]
[1753419801849,0.5005,3650.7,3650.6,4.407]
[1753419802865,0.5005,3650.7,3650.6,7.14627573]
[1753419803218,0.002,3650.7,3650.6,7.60987573]
[1753419803746,0.002,3650.7,3650.6,7.74667573]
[1753419804728,0.002,3650.7,3650.6,8.23117573]
[1753419805445,0.002,3650.7,3650.0,9.86772298]
[1753419805446,0.5005,3650.7,3650.0,10.33129619]
[1753419805648,3.49463867,3650.6,3650.0,7.128]
[1753419805950,0.4985,3650.5,3650.2,0.1368]
[1753419806260,0.002,3650.7,3650.5,0.1368]
[1753419806473,2.73947737,3650.4,3650.0,7.128]
[1753419806652,0.53919774,3650.3,3650.1,4.406]
[1753419806853,0.4985,3650.2,3650.1,4.406]
[1753419808646,0.1368,3650.4,3650.1,4.406]
[1753419808845,0.4985,3650.3,3650.1,0.1368]
[1753419809048,0.4985,3650.3,3650.2,4.405]
[1753419809477,0.4985,3650.3,3650.0,7.128]
[1753419809675,3.23805649,3650.3,3650.1,4.405]
[1753419809975,0.1368,3650.3,3650.2,4.405]
[1753419810180,0.002,3650.7,3650.2,4.405]
[1753419810342,0.4985,3650.6,3650.2,4.405]
[1753419811037,3.23778179,3650.6,3650.3,4.405]
[1753419811238,0.002,3650.7,3650.3,4.405]
[1753419811239,0.6353,3650.5,3650.3,4.405]
[1753419811476,0.1368,3650.5,3650.3,4.405]
[1753419811684,0.4985,3650.4,3649.9,0.1368]
[1753419811843,0.4985,3650.4,3649.4,0.4845]
[1753419811844,3.64616882,3650.1,3649.4,3.2037613]
[1753419812044,0.4985,3650.0,3649.6,0.1368]
[1753419812360,0.4985,3650.0,3649.7,4.405]
[1753419812737,3.23823877,3650.0,3649.1,1.2749]
[1753419812976,0.4985,3649.9,3649.3,2.74020022]
[1753419813170,0.6353,3649.9,3649.4,4.5418]
[1753419813674,0.4985,3649.8,3649.4,7.28196994]
[1753419813877,0.1368,3649.9,3649.4,7.28196994]
[1753419814170,0.4985,3649.7,3649.4,4.5418]
[1753419814372,0.4985,3649.7,3649.4,7.28196124]
[1753419814545,0.4985,3649.7,3649.4,4.5418]
[1753419814751,0.1368,3649.9,3649.4,4.5418]
[1753419814951,0.4985,3649.6,3649.4,4.5418]
[1753419815346,0.1368,3649.9,3649.4,0.1368]
[1753419815347,0.4985,3649.8,3649.4,0.1368]
[1753419815573,0.4985,3649.7,3649.5,4.404]
[1753419815874,0.1368,3649.7,3649.6,4.404]
[1753419816244,0.4985,3649.9,3649.6,4.404]
[1753419816446,0.4985,3649.9,3649.7,4.404]
[1753419816666,0.4985,3649.9,3649.7,2.73994823]
[1753419816988,0.4985,3649.9,3649.7,4.404]
[1753419817158,0.1368,3650.0,3649.7,4.404]
[1753419817362,0.1368,3650.6,3649.9,0.1368]
[1753419817681,1.3188,3650.7,3650.0,4.404]
[1753419817841,0.8203,3650.7,3650.3,0.1368]
[1753419818041,0.4985,3650.6,3650.4,4.404]
[1753419818242,0.4985,3650.6,3650.5,2.73935077]
[1753419818645,0.8203,3650.7,3650.6,2.73927573]
[1753419818856,0.002,3650.7,3650.6,2.73927573]
[1753419819080,0.002,3650.7,3650.5,4.404]
[1753419819280,0.4985,3650.6,3650.3,2.73945302]
[1753419819590,0.4985,3650.5,3650.4,7.14341222]
[1753419820791,0.4985,3650.5,3650.4,7.39217626]
[1753419821300,0.1388,3650.7,3650.6,2.73927573]
[1753419821595,0.1388,3650.7,3650.6,7.14227573]
[1753419821596,0.6373,3650.7,3650.6,7.14227573]
[1753419821797,0.6373,3650.7,3650.6,7.39104758]
[1753419821953,0.6373,3650.7,3650.6,4.403]
[1753419823082,0.78544,3650.7,3650.5,4.403]
[1753419823266,0.4985,3650.6,3650.5,4.403]
[1753419826154,0.4985,3650.6,3647.1,4.81602714]
[1753419826155,0.4985,3650.6,3647.9,0.001]
[1753419826354,0.1368,3650.3,3649.8,4.78753069]
[1753419826672,0.6373,3650.7,3650.3,2.73949041]
[1753419826982,0.4597,3650.6,3650.4,7.14136142]
[1753419827379,0.4597,3650.6,3650.5,2.73935077]
[1753419827685,0.4597,3650.6,3650.4,4.402]
[1753419827889,0.1388,3650.7,3650.4,4.402]
[1753419828054,0.4597,3650.5,3650.4,7.14142581]
[1753419828383,0.4597,3650.5,3650.4,4.402]
[1753419828553,0.5965,3650.5,3650.4,4.402]
[1753419829201,0.1368,3650.5,3650.4,4.402]
[1753419829405,0.002,3650.7,3650.4,7.60202581]
[1753419829617,0.1388,3650.7,3650.5,0.4606]
[1753419829928,0.1388,3650.7,3650.6,4.401]
[1753419831519,0.5985,3650.7,3650.6,4.401]
[1753419832709,0.5985,3650.7,3650.6,7.14027573]
[1753419832905,0.5985,3650.7,3650.6,4.401]
[1753419835112,0.5985,3650.7,3650.6,4.64989477]
[1753419836213,0.1388,3650.7,3650.6,4.64989477]
[1753419836929,0.5985,3650.7,3650.6,4.64989477]
[1753419837300,0.1388,3650.7,3650.6,4.64989477]
[1753419837500,0.1388,3650.7,3650.6,7.3891705]
[1753419837727,0.1388,3650.7,3650.6,8.3348705]
[1753419837928,0.1388,3650.7,3650.6,5.59559477]
[1753419838161,0.5985,3650.7,3650.6,4.64989477]
[1753419838299,0.5985,3650.7,3650.6,4.401]
[1753419839402,0.5985,3650.7,3650.6,4.64985688]
[1753419839614,0.5985,3650.7,3650.6,2.98813261]
[1753419839950,0.5985,3650.7,3650.6,4.399]
[1753419840154,0.5985,3650.7,3650.4,2.73940195]
[1753419840457,0.5985,3650.7,3650.5,7.13735077]
[1753419840458,0.4597,3650.6,3650.5,7.13735077]
[1753419840800,0.1388,3650.7,3650.5,7.13735077]
[1753419840998,0.5985,3650.7,3650.5,7.13735077]
[1753419841419,0.5985,3650.7,3650.5,4.398]
[1753419841618,0.5985,3650.7,3650.5,7.13733504]
[1753419841840,0.1388,3650.7,3650.6,2.98815991]
[1753419842271,0.1388,3650.7,3650.6,0.24888418]
[1753419842475,0.5985,3650.7,3650.6,0.24888418]
[1753419843533,0.5985,3650.7,3650.6,2.98815991]
[1753419843858,0.5985,3650.7,3650.6,0.24888418]
[1753419844055,0.5985,3650.7,3650.5,7.13733273]
[1753419844294,0.5985,3650.7,3650.6,0.24897895]
[1753419844459,0.5985,3650.7,3650.6,2.98825468]
[1753419845049,0.002,3650.7,3650.6,4.46142203]
[1753419845295,0.002,3650.7,3650.6,4.59822203]
[1753419845480,0.002,3650.7,3650.6,4.59816811]
[1753419845862,0.002,3650.7,3650.6,5.08326811]
[1753419846698,0.002,3650.7,3650.6,5.11066086]
[1753419847488,0.002,3650.7,3650.6,5.08326811]
[1753419849390,1e-08,3650.7,3650.6,5.90946811]
[1753419850314,1e-08,3650.7,3650.6,10.30446811]
[1753419851116,1e-08,3650.7,3650.6,13.30446811]
[1753419851316,1e-08,3650.7,3650.6,19.64922691]
[1753419852354,1e-08,3650.9,3650.6,19.64922691]
[1753419852560,0.002,3651.5,3651.4,3.52917557]
[1753419852853,0.04,3651.9,3651.8,2.73837559]
[1753419853022,0.04,3651.9,3651.8,2.98730062]
[1753419853225,0.04,3651.9,3651.8,7.84190062]
[1753419853422,0.04,3651.9,3651.8,9.43354736]
[1753419853637,0.04,3651.9,3651.8,10.26004736]
[1753419853838,0.04,3651.9,3651.8,5.38094736]
[1753419854139,0.04,3651.9,3651.8,0.24892503]
[1753419854338,0.04,3651.9,3650.8,7.6091]
[1753419854339,0.4997,3651.9,3651.2,2.7387525]
[1753419854540,0.9488,3651.9,3651.3,0.248035]
[1753419854724,0.4597,3651.8,3651.4,0.248035]
[1753419854926,0.04,3651.9,3651.5,2.73853269]
[1753419855140,0.04,3651.9,3651.6,4.393]
[1753419855450,0.04,3651.9,3651.8,2.73837559]
[1753419855642,0.04,3651.9,3651.8,4.393]
[1753419855841,0.4997,3651.9,3651.8,4.393]
[1753419856042,0.04,3651.9,3651.8,7.13137559]
[1753419856228,0.04,3651.9,3651.8,9.3687559]
[1753419856410,0.04,3651.9,3651.8,9.8538559]
[1753419857010,0.04,3651.9,3651.8,3.7253559]
[1753419857210,0.5068,3651.9,3651.8,4.392]
[1753419857433,0.5068,3651.9,3651.8,7.13037559]
[1753419857752,0.04,3651.9,3651.8,7.13037559]
[1753419857925,0.5068,3651.9,3651.8,4.392]
[1753419858514,0.5068,3651.9,3651.2,3.504311]
[1753419858711,0.5068,3651.9,3651.3,4.391]
[1753419858936,0.04,3651.9,3651.3,4.8494]
[1753419859145,0.04,3651.9,3651.8,2.73837559]
[1753419859356,0.04,3651.9,3651.8,7.12937559]
[1753419859537,0.04,3651.9,3651.8,7.58777559]
[1753419860055,0.5068,3651.9,3651.8,4.391]
[1753419860216,0.04,3651.9,3651.8,4.391]
[1753419862164,0.04,3651.9,3651.8,7.12937559]
[1753419862366,0.04,3651.9,3651.8,4.391]
[1753419863432,0.04,3651.9,3651.8,7.12937559]
[1753419864031,0.04,3651.9,3651.8,7.58777559]
[1753419864236,0.04,3651.9,3651.8,4.8494]
[1753419864566,0.04,3651.9,3651.8,4.391]
[1753419866905,0.8155,3651.8,3651.0,3.19731017]
[1753419867068,0.8155,3651.8,3651.3,0.1368]
[1753419867276,0.4668,3651.7,3651.4,7.1266514]
[1753419867472,0.9523,3651.8,3651.5,2.73859996]
[1753419867769,0.4668,3651.7,3651.6,4.388]
[1753419867970,0.1368,3651.8,3651.6,4.388]
[1753419868766,0.6036,3651.8,3651.6,4.388]
[1753419869178,0.1368,3651.8,3651.6,4.388]
[1753419869474,0.4668,3651.7,3651.3,0.1368]
[1753419869663,0.4668,3651.7,3651.4,4.63547071]
[1753419869860,0.4668,3651.7,3651.5,0.24747071]
[1753419870064,0.4668,3651.7,3651.6,4.388]
[1753419870460,0.4668,3651.7,3651.6,4.387]
[1753419871583,0.9356,3651.7,3651.6,4.387]
[1753419872258,0.9356,3651.7,3651.6,4.63459053]
[1753419872483,1.35972311,3651.7,3651.6,0.24759053]
[1753419872691,5.44557369,3651.7,3651.6,4.63459053]
[1753419872870,5.44557369,3651.7,3651.6,4.387]
[1753419873075,2.70712311,3651.7,3651.4,4.387]
[1753419873284,2.73860057,3651.5,3651.4,4.387]
[1753419873455,2.87540057,3651.5,3651.4,4.63481489]
[1753419873779,0.6036,3651.5,3651.4,4.63481489]
[1753419874285,0.1368,3651.5,3651.4,4.63481489]
[1753419874486,0.6036,3651.5,3651.4,4.63481489]
[1753419875860,0.1368,3651.7,3651.5,0.24790408]
[1753419876072,0.1368,3651.7,3651.6,4.386]
[1753419876297,0.6036,3651.7,3651.6,4.386]
[1753419877360,0.6036,3651.7,3651.6,4.63409335]
[1753419877696,0.042,3651.9,3651.7,2.73839844]
[1753419877990,0.042,3651.9,3651.8,4.63309335]
[1753419878189,0.5088,3651.9,3651.8,4.63309335]
[1753419880385,0.5088,3651.9,3651.8,4.385]
[1753419880584,0.5088,3651.9,3651.8,4.63324303]
[1753419881798,0.5088,3651.9,3651.8,4.385]
[1753419882102,0.5088,3651.9,3651.8,4.63324179]
[1753419882692,3.24710061,3651.9,3651.8,4.63324179]
[1753419882877,0.5088,3651.9,3651.8,4.63324179]
[1753419883487,0.5088,3651.9,3651.8,4.385]
[1753419883975,0.042,3651.9,3651.8,7.37157556]
[1753419884159,0.042,3651.9,3651.8,5.09159997]
[1753419884494,0.5088,3651.9,3651.8,0.24819997]
[1753419884694,0.5088,3651.9,3651.8,4.63119997]
[1753419884897,0.5088,3651.9,3651.8,4.383]
[1753419885098,0.042,3651.9,3651.8,4.383]
[1753419885304,0.042,3651.9,3651.8,4.63120207]
[1753419885800,0.042,3651.9,3651.8,5.56000207]
[1753419886201,0.042,3651.9,3651.8,8.29837766]
[1753419886577,0.042,3651.9,3651.8,5.56000207]
[1753419886997,0.042,3651.9,3651.8,5.08960207]
[1753419887203,0.042,3651.9,3651.8,7.82797766]
[1753419887400,0.042,3651.9,3651.8,5.08960207]
[1753419887720,0.042,3651.9,3651.8,8.20247766]
[1753419887876,0.042,3651.9,3651.8,8.66307766]
[1753419888381,0.042,3651.9,3651.8,9.14227766]
[1753419890603,0.042,3651.9,3651.8,10.99236614]
[1753419891106,0.042,3651.9,3651.8,10.74416407]
[1753419891684,0.042,3651.9,3651.8,10.26496407]
[1753419892910,0.042,3651.9,3651.8,7.12137559]
[1753419893073,0.042,3651.9,3651.8,7.58197559]
[1753419894006,0.042,3651.9,3651.8,7.12137559]
[1753419894171,0.042,3651.9,3651.8,7.58197559]
[1753419895572,0.042,3651.9,3651.8,8.06117559]
[1753419895772,0.042,3651.9,3651.8,9.2085704]
[1753419895974,0.042,3651.9,3651.8,10.0105704]
[1753419897774,0.042,3651.9,3651.8,10.1473704]
[1753419899088,0.042,3651.9,3651.8,10.1413704]
[1753419899725,0.042,3651.9,3651.8,5.7643704]
[1753419899890,0.042,3651.9,3651.8,10.38974616]
[1753419900830,0.042,3651.9,3651.8,4.62437576]
[1753419901118,0.5036,3651.9,3651.8,7.36275135]
[1753419901324,0.042,3651.9,3651.8,7.36275135]
[1753419901625,0.042,3651.9,3651.8,7.82335135]
[1753419902594,0.042,3651.9,3651.8,7.82235135]
[1753419902822,0.042,3651.9,3651.8,7.36175135]
[1753419903126,1.3995,3651.9,3651.8,4.62337576]
[1753419903320,0.6404,3651.9,3651.8,4.62337576]
[1753419904309,0.6404,3651.9,3651.8,0.24837576]
[1753419904512,0.6404,3651.9,3651.8,4.62337576]
[1753419905320,0.6404,3651.9,3651.8,0.24837576]
[1753419905521,0.6404,3651.9,3651.8,4.62237576]
[1753419906625,0.6404,3651.9,3651.8,0.24837576]
[1753419907026,0.79375,3651.9,3651.8,0.24837576]
[1753419907227,0.79375,3651.9,3651.8,4.62237576]
[1753419907737,3.53205061,3651.9,3651.8,0.24837576]
[1753419907893,0.79375,3651.9,3651.8,4.62137576]
[1753419910230,4.08205061,3651.9,3651.8,0.24837576]
[1753419910431,4.53175061,3651.9,3651.8,4.62037576]
[1753419911828,4.08205061,3651.9,3651.8,4.62037576]
[1753419912026,1.34375,3651.9,3651.8,4.62037576]
[1753419912233,4.08205061,3651.9,3651.8,4.62037576]
[1753419912733,1.34375,3651.9,3651.8,4.62037576]
[1753419913137,0.6404,3651.9,3651.8,4.62037576]
[1753419914229,0.1788,3651.9,3651.8,4.62037576]
[1753419914835,0.6404,3651.9,3651.8,4.62037576]
[1753419915424,3.37870061,3651.9,3651.8,4.62037576]
[1753419915636,0.6404,3651.9,3651.8,4.62037576]
[1753419915830,3.37870061,3651.9,3651.8,4.62037576]
[1753419916042,4.0796886,3651.9,3651.8,4.62037576]
[1753419916538,4.5293886,3651.9,3651.8,4.62037576]
[1753419916973,4.5293886,3651.9,3651.8,4.61837576]
[1753419917113,5.8462886,3651.9,3651.8,0.24837576]
[1753419917309,2.73847165,3651.7,3651.5,4.371]
[1753419917508,0.8285,3651.9,3651.6,0.2488517]
[1753419917708,0.8285,3651.9,3651.5,4.371]
[1753419917709,3.76117559,3651.8,3651.7,0.24880623]
[1753419917908,4.20450559,3651.8,3651.7,0.24880623]
[1753419918122,4.77140559,3651.8,3651.7,0.24880623]
[1753419918847,2.73852557,3651.6,3651.5,0.001]
[1753419919042,2.73852557,3651.6,3651.5,0.24978897]
[1753419919214,4.32822557,3651.6,3651.5,0.24978897]
[1753419920116,3.89812557,3651.6,3651.5,0.24978897]
[1753419921413,6.89812557,3651.6,3651.5,0.001]
[1753419921712,9.03687145,3651.6,3651.5,0.001]
[1753419921913,7.81537145,3651.6,3651.5,0.001]
[1753419922219,8.24547145,3651.6,3651.5,0.001]
[1753419923379,7.81537145,3651.6,3651.5,0.001]
[1753419923543,6.34812557,3651.6,3651.5,0.001]
[1753419926184,3.6096,3651.6,3651.5,0.001]
[1753419926568,0.1368,3651.6,3651.5,0.001]
[1753419926770,2.87532557,3651.6,3651.5,0.4672]
[1753419926944,4.14342557,3651.6,3651.5,4.367]
[1753419927339,4.14342557,3651.6,3651.5,0.001]
[1753419927555,1.4049,3651.6,3651.5,0.001]
[1753419927882,0.1368,3651.6,3651.5,0.001]
[1753419928544,2.78030479,3651.9,3651.5,4.8322]
[1753419928860,0.1368,3651.8,3651.6,0.4662]
[1753419929061,0.1368,3651.8,3651.5,4.366]
[1753419929279,0.1368,3651.8,3651.7,0.4662]
[1753419929672,0.1368,3651.8,3651.5,4.366]
[1753419929899,0.1368,3651.8,3651.6,0.4662]
[1753419932162,0.1368,3651.8,3651.6,2.73850321]
[1753419932369,0.1368,3651.8,3651.7,0.4662]
[1753419934887,0.1368,3651.8,3651.7,3.20465058]
[1753419935255,0.1368,3651.8,3651.7,0.4662]
[1753419935455,0.1368,3651.8,3651.7,3.20465058]
[1753419935776,0.1368,3651.8,3651.7,0.4662]
[1753419937690,0.1368,3651.8,3651.7,0.4662]
[1753419937890,0.1368,3651.8,3651.7,3.20465058]
[1753419938097,0.1368,3651.8,3651.7,0.4662]
[1753419938304,0.1368,3651.8,3651.7,3.20465058]
[1753419938586,0.042,3651.9,3651.7,1.5822095]
[1753419938899,0.4728,3651.8,3651.5,0.001]
[1753419939090,3.42532557,3651.6,3651.5,0.001]
[1753419939459,4.32822557,3651.6,3651.5,0.001]
[1753419939714,1.1596,3651.6,3651.5,0.001]
[1753419940168,3.89812557,3651.6,3651.5,0.001]
[1753419940572,1.1596,3651.6,3651.5,0.24990154]
[1753419940893,3.89812557,3651.6,3651.5,0.24990154]
[1753419941097,1.1596,3651.6,3651.5,0.24990154]
[1753419941597,1.1596,3651.6,3651.5,0.001]
[1753419941773,0.6868,3651.6,3651.5,0.001]
[1753419941977,3.89812557,3651.6,3651.5,0.001]
[1753419942293,4.59899332,3651.6,3651.5,0.001]
[1753419943955,5.02909332,3651.6,3651.5,0.001]
[1753419944363,1.86046775,3651.6,3651.5,0.001]
[1753419944673,1.1596,3651.6,3651.5,0.001]
[1753419944984,3.89812557,3651.6,3651.5,0.001]
[1753419947179,4.33582557,3651.6,3651.5,0.001]
[1753419949998,5.09162557,3651.6,3651.5,0.001]
[1753419950572,8.09162557,3651.6,3651.5,0.001]
[1753419950779,6.43830147,3651.6,3651.5,0.001]
[1753419950984,9.2851,3651.6,3651.5,0.001]
[1753419951180,12.02362557,3651.6,3651.5,0.001]
[1753419951603,12.46132557,3651.6,3651.5,0.001]
[1753419955006,12.46032557,3651.6,3651.5,0.001]
[1753419955575,12.46032557,3651.6,3651.5,1e-08]
[1753419955576,20.94527288,3651.6,3651.5,1e-08]
[1753419955904,27.97678547,3651.6,3651.5,1e-08]
[1753419956108,27.97678547,3651.6,3649.7,0.001]
[1753419956109,4.532,3650.5,3649.7,0.001]
[1753419956280,2.73875058,3651.3,3649.7,0.001]
[1753419956281,8.15537615,3649.8,3649.7,0.001]
[1753419956480,13.05937615,3649.8,3649.7,0.001]
[1753419956709,13.91649194,3649.8,3649.7,0.001]
[1753419957075,9.56249194,3649.8,3649.7,0.001]
[1753419957471,9.12479194,3649.8,3649.7,0.001]
[1753419957709,11.41237615,3649.8,3649.7,0.001]
[1753419958091,3.55,3649.8,3649.7,0.001]
[1753419958297,0.7685,3650.1,3649.7,0.4421]
[1753419958605,3.55,3650.0,3649.8,0.4411]
[1753419958805,0.55,3650.1,3649.8,0.4411]
[1753419959015,4.354,3650.3,3649.7,0.001]
[1753419959194,0.5609,3650.3,3649.7,2.74092886]
[1753419959375,0.55,3650.2,3649.7,0.001]
[1753419959571,0.08567939,3650.4,3649.8,0.4411]
[1753419959770,0.55,3650.6,3649.9,2.73972891]
[1753419960001,0.56886,3650.5,3650.0,3.18081106]
[1753419960199,0.56886,3650.5,3650.0,0.4411]
[1753419960388,0.7846,3651.1,3650.2,2.73957591]
[1753419960589,0.7846,3651.1,3650.3,6.92342801]
[1753419960819,1.38401377,3651.1,3650.4,0.4411]
[1753419961018,5.73701377,3651.1,3650.2,2.73957453]
[1753419961326,3.72553767,3651.0,3650.1,3.18072979]
[1753419961519,0.55,3650.9,3650.1,3.18072979]
[1753419961707,0.55,3650.7,3650.2,2.73956949]
[1753419961906,0.4865,3650.6,3650.1,2.73964169]
[1753419962134,0.55,3650.7,3650.2,3.1806648]
[1753419962333,0.55,3650.7,3650.2,2.7395648]
[1753419962632,0.55,3650.7,3650.3,0.4411]
[1753419963000,1.0365,3650.7,3650.1,2.7396411]
[1753419963410,1.0365,3650.7,3650.1,2.73963417]
[1753419963613,1.0365,3650.7,3649.7,0.001]
[1753419963614,0.55,3650.5,3649.7,0.001]
[1753419963810,6.28987615,3649.8,3649.7,0.001]
[1753419964009,11.43657615,3649.8,3649.7,0.001]
[1753419964221,12.78117444,3649.8,3649.7,0.001]
[1753419964421,13.70537444,3649.8,3649.7,0.001]
[1753419965194,6.17479829,3649.8,3649.7,0.001]
[1753419965503,0.7937,3650.6,3649.7,0.4421]
[1753419965696,2.73966878,3650.1,3649.7,0.4421]
[1753419965933,3.0,3650.3,3649.7,0.4421]
[1753419966232,0.80944179,3650.7,3649.7,0.4421]
[1753419966233,0.1368,3649.9,3649.8,1.7011]
[1753419966423,0.1368,3650.8,3650.5,2.73933159]
[1753419966605,0.1368,3650.8,3650.6,0.4411]
[1753419967040,0.1368,3650.8,3650.7,0.4411]
[1753419967212,0.1368,3650.8,3650.2,0.4411]
[1753419967520,0.1368,3650.8,3650.2,3.39518788]
[1753419967699,0.1368,3650.8,3650.3,2.73948952]
[1753419967895,0.1368,3650.8,3650.3,2.73949648]
[1753419968096,0.1368,3650.8,3650.4,0.4411]
[1753419968299,0.1368,3650.8,3650.1,0.1368]
[1753419968530,0.55,3650.7,3650.2,0.4411]
[1753419968734,0.1368,3650.4,3650.3,0.4411]
[1753419969736,0.1368,3650.4,3650.0,5.5803]
[1753419970040,0.1368,3650.4,3650.1,0.4411]
[1753419970204,0.1368,3650.4,3650.0,5.1392]
[1753419970401,0.1368,3650.4,3650.2,0.4411]
[1753419970625,0.75333641,3650.4,3649.9,0.5779]
[1753419970827,0.58758075,3650.8,3650.0,0.9149]
[1753419970828,4.94058075,3650.8,3650.0,0.9149]
[1753419971027,4.94058075,3650.8,3650.1,0.4411]
[1753419971028,0.1368,3650.5,3650.1,0.4411]
[1753419971226,0.1368,3650.5,3650.1,3.18073557]
[1753419971440,0.7992,3651.3,3650.4,2.7393578]
[1753419971740,0.1368,3650.8,3650.4,2.73942489]
[1753419971925,0.1368,3650.8,3650.5,0.9149]
[1753419972239,0.72437017,3650.8,3650.0,4.352]